[Event "Titled Tuesday Blitz August 08 Early 2023"]
[White "LuxLinster"]
[Black "Nava, Roderick"]
[BlackFideId "5201730"]
[WhiteElo "2297"]
[BlackElo "2659"]
[Result "0-1"]
[Round "3"]
[TimeControl "180+1"]
[Date "2023.08.08"]
[WhiteClock "0:00:01"]
[BlackClock "0:01:09"]
[Board "215"]

1. d4 {[%clk 0:03:00]}  c5 {[%clk 0:03:00]} 2. d5 {[%clk 0:03:00]}  Nf6 {[%clk 0:03:00]} 3. Nc3 {[%clk 0:03:00]}  d6 {[%clk 0:02:59]} 4. e4 {[%clk 0:03:00]}  a6 {[%clk 0:02:59]} 5. a4 {[%clk 0:03:00]}  g6 {[%clk 0:02:59]} 6. h3 {[%clk 0:02:45]}  Bg7 {[%clk 0:02:59]} 7. Nf3 {[%clk 0:02:46]}  O-O {[%clk 0:02:58]} 8. Be2 {[%clk 0:02:46]}  Nbd7 {[%clk 0:02:57]} 9. O-O {[%clk 0:02:44]}  Rb8 {[%clk 0:02:57]} 10. Nd2 {[%clk 0:02:42]}  Ne8 {[%clk 0:02:57]} 11. Nc4 {[%clk 0:02:35]}  Nc7 {[%clk 0:02:56]} 12. Bg5 {[%clk 0:02:13]}  Ne5 {[%clk 0:02:48]} 13. Na3 {[%clk 0:01:44]}  b5 {[%clk 0:02:39]} 14. axb5 {[%clk 0:01:42]}  axb5 {[%clk 0:02:40]} 15. Naxb5 {[%clk 0:01:42]}  Nxb5 {[%clk 0:02:39]} 16. Bxb5 {[%clk 0:01:40]}  Bd7 {[%clk 0:02:27]} 17. Bxd7 {[%clk 0:01:39]}  Qxd7 {[%clk 0:02:17]} 18. Ra2 {[%clk 0:01:05]}  Nc4 {[%clk 0:02:04]} 19. Na4 {[%clk 0:00:58]}  Nxb2 {[%clk 0:01:55]} 20. Nxb2 {[%clk 0:00:57]}  Rxb2 {[%clk 0:01:56]} 21. Rxb2 {[%clk 0:00:56]}  Bxb2 {[%clk 0:01:56]} 22. c4 {[%clk 0:00:36]}  Bd4 {[%clk 0:01:53]} 23. Qc2 {[%clk 0:00:32]}  f6 {[%clk 0:01:44]} 24. Bd2 {[%clk 0:00:24]}  Rb8 {[%clk 0:01:41]} 25. Rb1 {[%clk 0:00:24]}  Qa7 {[%clk 0:01:37]} 26. Rxb8+ {[%clk 0:00:21]}  Qxb8 {[%clk 0:01:37]} 27. Bc3 {[%clk 0:00:20]}  Bxc3 {[%clk 0:01:37]} 28. Qxc3 {[%clk 0:00:21]}  Qb1+ {[%clk 0:01:37]} 29. Kh2 {[%clk 0:00:21]}  Qxe4 {[%clk 0:01:37]} 30. Qb3 {[%clk 0:00:17]}  Kf7 {[%clk 0:01:30]} 31. Qa4 {[%clk 0:00:17]}  h5 {[%clk 0:01:20]} 32. g3 {[%clk 0:00:15]}  h4 {[%clk 0:01:18]} 33. gxh4 {[%clk 0:00:14]}  Qxh4 {[%clk 0:01:16]} 34. Kg2 {[%clk 0:00:15]}  Qg5+ {[%clk 0:01:16]} 35. Kh2 {[%clk 0:00:14]}  Qe5+ {[%clk 0:01:16]} 36. Kg2 {[%clk 0:00:14]}  g5 {[%clk 0:01:15]} 37. Qd7 {[%clk 0:00:12]}  Qe4+ {[%clk 0:01:13]} 38. Kg3 {[%clk 0:00:10]}  Qxc4 {[%clk 0:01:12]} 39. Qe6+ {[%clk 0:00:10]}  Kf8 {[%clk 0:01:12]} 40. Qc8+ {[%clk 0:00:10]}  Kg7 {[%clk 0:01:11]} 41. Qe6 {[%clk 0:00:10]}  Qf4+ {[%clk 0:01:09]} 42. Kg2 {[%clk 0:00:01]}  Qe5 {[%clk 0:01:09]} 0-1


[Site "https://www.chess.com"]

[Event "Titled Tuesday Blitz August 08 Early 2023"]
[White "Fernandez Siles, Luis"]
[Black "Kleiman, Jake"]
[WhiteFideId "2209420"]
[BlackFideId "2020041"]
[WhiteElo "2290"]
[BlackElo "2641"]
[Result "0-1"]
[Round "3"]
[TimeControl "180+1"]
[Date "2023.08.08"]
[WhiteClock "0:00:51"]
[BlackClock "0:01:19"]
[Board "217"]

1. e4 {[%clk 0:03:00]}  e5 {[%clk 0:02:58]} 2. Nf3 {[%clk 0:02:59]}  Nc6 {[%clk 0:02:57]} 3. Bc4 {[%clk 0:02:57]}  Bc5 {[%clk 0:02:55]} 4. O-O {[%clk 0:02:54]}  Nf6 {[%clk 0:02:55]} 5. d3 {[%clk 0:02:51]}  O-O {[%clk 0:02:55]} 6. Bg5 {[%clk 0:02:44]}  h6 {[%clk 0:02:55]} 7. Bh4 {[%clk 0:02:44]}  Be7 {[%clk 0:02:54]} 8. Nc3 {[%clk 0:02:43]}  d6 {[%clk 0:02:52]} 9. h3 {[%clk 0:02:41]}  Na5 {[%clk 0:02:40]} 10. Bb5 {[%clk 0:02:33]}  c6 {[%clk 0:02:37]} 11. Ba4 {[%clk 0:02:33]}  b5 {[%clk 0:02:37]} 12. Bb3 {[%clk 0:02:33]}  Nh5 {[%clk 0:02:28]} 13. Bxe7 {[%clk 0:02:27]}  Qxe7 {[%clk 0:02:29]} 14. d4 {[%clk 0:02:13]}  Nf4 {[%clk 0:02:22]} 15. d5 {[%clk 0:02:05]}  b4 {[%clk 0:02:15]} 16. Ne2 {[%clk 0:01:57]}  Ba6 {[%clk 0:01:56]} 17. Nfd4 {[%clk 0:01:06]}  exd4 {[%clk 0:01:42]} 18. Nxf4 {[%clk 0:01:05]}  Bxf1 {[%clk 0:01:41]} 19. Qxf1 {[%clk 0:01:06]}  Qxe4 {[%clk 0:01:38]} 20. Nd3 {[%clk 0:01:02]}  c5 {[%clk 0:01:29]} 21. Re1 {[%clk 0:00:58]}  Qf5 {[%clk 0:01:26]} 22. g4 {[%clk 0:00:57]}  Qf3 {[%clk 0:01:19]} 23. Ba4 {[%clk 0:00:51]} 0-1


[Site "https://www.chess.com"]

[Event "Titled Tuesday Blitz August 08 Early 2023"]
[White "Komov, Roman"]
[Black "Szente Varga, Fruzsina"]
[WhiteFideId "24175714"]
[BlackFideId "712264"]
[WhiteElo "2605"]
[BlackElo "2283"]
[Result "1-0"]
[Round "3"]
[TimeControl "180+1"]
[Date "2023.08.08"]
[WhiteClock "0:01:53"]
[BlackClock "0:01:20"]
[Board "218"]

1. e4 {[%clk 0:03:00]}  c5 {[%clk 0:02:59]} 2. Nc3 {[%clk 0:03:01]}  Nc6 {[%clk 0:02:58]} 3. Bb5 {[%clk 0:03:01]}  g6 {[%clk 0:02:58]} 4. Bxc6 {[%clk 0:03:01]}  dxc6 {[%clk 0:02:55]} 5. f4 {[%clk 0:03:02]}  Bg7 {[%clk 0:02:55]} 6. d3 {[%clk 0:03:02]}  e5 {[%clk 0:02:54]} 7. fxe5 {[%clk 0:03:02]}  Bxe5 {[%clk 0:02:55]} 8. Nf3 {[%clk 0:03:02]}  Bg7 {[%clk 0:02:54]} 9. O-O {[%clk 0:03:01]}  Ne7 {[%clk 0:02:53]} 10. Be3 {[%clk 0:03:01]}  b6 {[%clk 0:02:53]} 11. Qe1 {[%clk 0:03:01]}  O-O {[%clk 0:02:52]} 12. Rd1 {[%clk 0:03:01]}  f5 {[%clk 0:02:51]} 13. Bg5 {[%clk 0:02:59]}  Qc7 {[%clk 0:02:44]} 14. e5 {[%clk 0:02:58]}  Be6 {[%clk 0:02:38]} 15. Qh4 {[%clk 0:02:56]}  Nd5 {[%clk 0:02:36]} 16. Rde1 {[%clk 0:02:51]}  Rae8 {[%clk 0:02:21]} 17. Bh6 {[%clk 0:02:46]}  f4 {[%clk 0:02:18]} 18. Ne4 {[%clk 0:02:41]}  Bxh6 {[%clk 0:01:58]} 19. Qxh6 {[%clk 0:02:39]}  Ne3 {[%clk 0:01:58]} 20. Nf6+ {[%clk 0:02:26]}  Rxf6 {[%clk 0:01:58]} 21. exf6 {[%clk 0:02:26]}  Nxf1 {[%clk 0:01:57]} 22. Kxf1 {[%clk 0:02:10]}  c4 {[%clk 0:01:24]} 23. Ng5 {[%clk 0:02:09]}  cxd3 {[%clk 0:01:24]} 24. f7+ {[%clk 0:02:06]}  Bxf7 {[%clk 0:01:21]} 25. Qxh7+ {[%clk 0:02:06]}  Kf8 {[%clk 0:01:21]} 26. Qh8+ {[%clk 0:02:03]}  Bg8 {[%clk 0:01:20]} 27. Rxe8+ {[%clk 0:01:54]}  Kxe8 {[%clk 0:01:21]} 28. Qxg8+ {[%clk 0:01:54]}  Kd7 {[%clk 0:01:22]} 29. Qe6+ {[%clk 0:01:53]}  Kd8 {[%clk 0:01:20]} 30. Nf7+ {[%clk 0:01:53]} 1-0


[Site "https://www.chess.com"]

[Event "Titled Tuesday Blitz August 08 Early 2023"]
[White "Lenaerts, Lennert"]
[Black "Afanasieva, Alexandra"]
[WhiteFideId "211435"]
[BlackFideId "34126926"]
[WhiteElo "2598"]
[BlackElo "2282"]
[Result "0-1"]
[Round "3"]
[TimeControl "180+1"]
[Date "2023.08.08"]
[WhiteClock "0:02:22"]
[BlackClock "0:01:18"]
[Board "219"]

1. d4 {[%clk 0:02:52]}  d5 {[%clk 0:02:58]} 2. c4 {[%clk 0:02:52]}  e6 {[%clk 0:02:59]} 3. Nc3 {[%clk 0:02:50]}  c5 {[%clk 0:02:59]} 4. cxd5 {[%clk 0:02:50]}  exd5 {[%clk 0:02:58]} 5. Nf3 {[%clk 0:02:51]}  Nc6 {[%clk 0:02:59]} 6. g3 {[%clk 0:02:51]}  Nf6 {[%clk 0:02:59]} 7. Bg2 {[%clk 0:02:51]}  cxd4 {[%clk 0:03:00]} 8. Nxd4 {[%clk 0:02:52]}  Bc5 {[%clk 0:03:00]} 9. Nb3 {[%clk 0:02:53]}  Bb6 {[%clk 0:03:01]} 10. O-O {[%clk 0:02:53]}  d4 {[%clk 0:03:01]} 11. Na4 {[%clk 0:02:53]}  O-O {[%clk 0:03:01]} 12. Bg5 {[%clk 0:02:53]}  Re8 {[%clk 0:03:01]} 13. Re1 {[%clk 0:02:52]}  h6 {[%clk 0:03:01]} 14. Bxf6 {[%clk 0:02:52]}  Qxf6 {[%clk 0:03:02]} 15. Nxb6 {[%clk 0:02:52]}  axb6 {[%clk 0:03:03]} 16. Bxc6 {[%clk 0:02:53]}  bxc6 {[%clk 0:03:04]} 17. Qxd4 {[%clk 0:02:53]}  Qd8 {[%clk 0:03:05]} 18. Qc3 {[%clk 0:02:48]}  c5 {[%clk 0:03:01]} 19. Rad1 {[%clk 0:02:48]}  Qc7 {[%clk 0:03:00]} 20. a3 {[%clk 0:02:48]}  Ba6 {[%clk 0:02:58]} 21. e4 {[%clk 0:02:48]}  Re7 {[%clk 0:02:43]} 22. f3 {[%clk 0:02:45]}  Rd8 {[%clk 0:02:42]} 23. Qc2 {[%clk 0:02:39]}  Red7 {[%clk 0:02:39]} 24. Rxd7 {[%clk 0:02:39]}  Qxd7 {[%clk 0:02:37]} 25. Kf2 {[%clk 0:02:39]}  c4 {[%clk 0:02:29]} 26. Nc1 {[%clk 0:02:37]}  Qd2+ {[%clk 0:02:29]} 27. Qxd2 {[%clk 0:02:38]}  Rxd2+ {[%clk 0:02:30]} 28. Re2 {[%clk 0:02:38]}  c3 {[%clk 0:02:19]} 29. bxc3 {[%clk 0:02:32]}  Bxe2 {[%clk 0:02:18]} 30. Nxe2 {[%clk 0:02:33]}  Ra2 {[%clk 0:02:18]} 31. Ke3 {[%clk 0:02:33]}  Rxa3 {[%clk 0:02:18]} 32. h4 {[%clk 0:02:34]}  Kf8 {[%clk 0:02:14]} 33. h5 {[%clk 0:02:32]}  Ke7 {[%clk 0:02:14]} 34. g4 {[%clk 0:02:33]}  b5 {[%clk 0:02:11]} 35. Kd4 {[%clk 0:02:32]}  Kd6 {[%clk 0:02:10]} 36. e5+ {[%clk 0:02:32]}  Kc6 {[%clk 0:02:10]} 37. Nc1 {[%clk 0:02:27]}  Ra4+ {[%clk 0:02:09]} 38. Kd3 {[%clk 0:02:25]}  Kd5 {[%clk 0:02:00]} 39. Nb3 {[%clk 0:02:24]}  Kxe5 {[%clk 0:01:49]} 40. Nd4 {[%clk 0:02:24]}  Kf4 {[%clk 0:01:38]} 41. Nxb5 {[%clk 0:02:23]}  Kxf3 {[%clk 0:01:37]} 42. Nd6 {[%clk 0:02:22]}  Kxg4 {[%clk 0:01:18]} 0-1


[Site "https://www.chess.com"]

[Event "Titled Tuesday Blitz August 08 Early 2023"]
[White "Bagrationi, Alexander"]
[Black "GAO"]
[WhiteFideId "14104954"]
[WhiteElo "2592"]
[BlackElo "2279"]
[Result "1-0"]
[Round "3"]
[TimeControl "180+1"]
[Date "2023.08.08"]
[WhiteClock "0:00:58"]
[BlackClock "0:00:00"]
[Board "220"]

1. d4 {[%clk 0:03:00]}  Nf6 {[%clk 0:02:53]} 2. g3 {[%clk 0:03:00]}  e6 {[%clk 0:02:53]} 3. Bg2 {[%clk 0:03:00]}  d5 {[%clk 0:02:53]} 4. Nf3 {[%clk 0:02:58]}  Be7 {[%clk 0:02:53]} 5. O-O {[%clk 0:02:58]}  O-O {[%clk 0:02:53]} 6. Bf4 {[%clk 0:02:59]}  b6 {[%clk 0:02:52]} 7. Nbd2 {[%clk 0:03:00]}  Bb7 {[%clk 0:02:52]} 8. a4 {[%clk 0:03:00]}  a6 {[%clk 0:02:52]} 9. a5 {[%clk 0:03:00]}  b5 {[%clk 0:02:52]} 10. Ne5 {[%clk 0:03:01]}  Nbd7 {[%clk 0:02:52]} 11. Nb3 {[%clk 0:03:00]}  Rc8 {[%clk 0:02:49]} 12. e3 {[%clk 0:03:00]}  c5 {[%clk 0:02:47]} 13. dxc5 {[%clk 0:02:58]}  Nxc5 {[%clk 0:02:46]} 14. Nxc5 {[%clk 0:02:56]}  Bxc5 {[%clk 0:02:42]} 15. c4 {[%clk 0:02:55]}  bxc4 {[%clk 0:02:14]} 16. Nxc4 {[%clk 0:02:25]}  Bb4 {[%clk 0:02:08]} 17. Nb6 {[%clk 0:02:22]}  Rc6 {[%clk 0:02:07]} 18. Qa4 {[%clk 0:02:21]}  Bxa5 {[%clk 0:02:04]} 19. Nxd5 {[%clk 0:02:19]}  Nxd5 {[%clk 0:01:52]} 20. Qxa5 {[%clk 0:02:20]}  Qxa5 {[%clk 0:01:52]} 21. Rxa5 {[%clk 0:02:19]}  Rb6 {[%clk 0:01:52]} 22. Be5 {[%clk 0:02:16]}  f6 {[%clk 0:01:51]} 23. Bd4 {[%clk 0:02:16]}  Rb5 {[%clk 0:01:49]} 24. Rxb5 {[%clk 0:02:16]}  axb5 {[%clk 0:01:50]} 25. Ra1 {[%clk 0:02:14]}  Ra8 {[%clk 0:01:48]} 26. Rxa8+ {[%clk 0:02:13]}  Bxa8 {[%clk 0:01:49]} 27. Bc5 {[%clk 0:02:10]}  Kf7 {[%clk 0:01:48]} 28. f4 {[%clk 0:02:10]}  Bc6 {[%clk 0:01:39]} 29. Kf2 {[%clk 0:02:07]}  Ne7 {[%clk 0:01:38]} 30. Bf1 {[%clk 0:01:56]}  f5 {[%clk 0:01:14]} 31. Ke2 {[%clk 0:01:50]}  Nd5 {[%clk 0:01:13]} 32. Kd2 {[%clk 0:01:46]}  Nf6 {[%clk 0:01:10]} 33. Kc2 {[%clk 0:01:40]}  Ke8 {[%clk 0:00:59]} 34. Kb3 {[%clk 0:01:38]}  Ne4 {[%clk 0:00:59]} 35. Bb4 {[%clk 0:01:34]}  Kd7 {[%clk 0:00:58]} 36. Ba5 {[%clk 0:01:27]}  Nf6 {[%clk 0:00:47]} 37. Bc3 {[%clk 0:01:21]}  Ng4 {[%clk 0:00:35]} 38. Bxg7 {[%clk 0:01:14]}  Nxe3 {[%clk 0:00:33]} 39. Be2 {[%clk 0:01:14]}  Nd5 {[%clk 0:00:27]} 40. Be5 {[%clk 0:01:10]}  Kc8 {[%clk 0:00:20]} 41. h3 {[%clk 0:01:06]}  Kb7 {[%clk 0:00:18]} 42. g4 {[%clk 0:01:06]}  Bd7 {[%clk 0:00:12]} 43. g5 {[%clk 0:01:05]}  Kc6 {[%clk 0:00:12]} 44. h4 {[%clk 0:01:04]}  Kc5 {[%clk 0:00:11]} 45. h5 {[%clk 0:01:03]}  Ne7 {[%clk 0:00:09]} 46. g6 {[%clk 0:01:02]}  Nxg6 {[%clk 0:00:04]} 47. hxg6 {[%clk 0:01:01]}  hxg6 {[%clk 0:00:05]} 48. Kc3 {[%clk 0:01:00]}  Bc6 {[%clk 0:00:05]} 49. b4+ {[%clk 0:00:59]}  Kb6 {[%clk 0:00:02]} 50. Kd4 {[%clk 0:00:59]}  Bd5 {[%clk 0:00:02]} 51. Bd6 {[%clk 0:00:58]}  Kc6 {[%clk 0:00:00]} 52. Bc5 {[%clk 0:00:58]} 1-0


[Site "https://www.chess.com"]

[Event "Titled Tuesday Blitz August 08 Early 2023"]
[White "Jahnz, Fabian"]
[Black "Thomforde-Toates, Noah"]
[WhiteFideId "4653300"]
[BlackFideId "30951992"]
[WhiteElo "2272"]
[BlackElo "2588"]
[Result "1-0"]
[Round "3"]
[TimeControl "180+1"]
[Date "2023.08.08"]
[WhiteClock "0:00:11"]
[BlackClock "0:00:04"]
[Board "221"]

1. e4 {[%clk 0:03:00]}  c5 {[%clk 0:02:58]} 2. Nf3 {[%clk 0:03:00]}  g6 {[%clk 0:02:58]} 3. d4 {[%clk 0:03:00]}  cxd4 {[%clk 0:02:59]} 4. Nxd4 {[%clk 0:03:00]}  Bg7 {[%clk 0:02:59]} 5. Be3 {[%clk 0:03:01]}  Nc6 {[%clk 0:02:59]} 6. c4 {[%clk 0:03:00]}  Nf6 {[%clk 0:02:59]} 7. Nc3 {[%clk 0:03:00]}  Ng4 {[%clk 0:02:59]} 8. Qxg4 {[%clk 0:02:57]}  Nxd4 {[%clk 0:02:58]} 9. Bxd4 {[%clk 0:02:57]}  Bxd4 {[%clk 0:02:57]} 10. Qd1 {[%clk 0:02:57]}  Qb6 {[%clk 0:02:53]} 11. Qd2 {[%clk 0:02:55]}  Bg7 {[%clk 0:02:48]} 12. Bd3 {[%clk 0:02:54]}  O-O {[%clk 0:02:46]} 13. O-O {[%clk 0:02:54]}  d6 {[%clk 0:02:46]} 14. Rab1 {[%clk 0:02:50]}  Be6 {[%clk 0:02:44]} 15. Nd5 {[%clk 0:02:45]}  Qd8 {[%clk 0:02:28]} 16. Kh1 {[%clk 0:02:40]}  Bd7 {[%clk 0:02:23]} 17. f4 {[%clk 0:02:39]}  e6 {[%clk 0:02:23]} 18. Nc3 {[%clk 0:02:38]}  Bc6 {[%clk 0:02:23]} 19. Bc2 {[%clk 0:02:24]}  Qe7 {[%clk 0:02:22]} 20. Rbe1 {[%clk 0:02:19]}  Rad8 {[%clk 0:02:19]} 21. Qe3 {[%clk 0:02:16]}  a6 {[%clk 0:02:18]} 22. Qg3 {[%clk 0:02:07]}  b5 {[%clk 0:02:13]} 23. cxb5 {[%clk 0:02:06]}  axb5 {[%clk 0:02:13]} 24. f5 {[%clk 0:02:04]}  Be5 {[%clk 0:02:12]} 25. Qh3 {[%clk 0:01:57]}  b4 {[%clk 0:02:06]} 26. Nd1 {[%clk 0:01:55]}  exf5 {[%clk 0:01:55]} 27. exf5 {[%clk 0:01:51]}  Qg5 {[%clk 0:01:55]} 28. Ne3 {[%clk 0:01:31]}  Rde8 {[%clk 0:01:35]} 29. Ng4 {[%clk 0:01:24]}  Bxb2 {[%clk 0:01:19]} 30. Rxe8 {[%clk 0:01:12]}  Bd7 {[%clk 0:00:54]} 31. Rxf8+ {[%clk 0:01:11]}  Kxf8 {[%clk 0:00:52]} 32. Qh6+ {[%clk 0:01:03]}  Qxh6 {[%clk 0:00:47]} 33. Nxh6 {[%clk 0:01:04]}  g5 {[%clk 0:00:42]} 34. f6 {[%clk 0:00:56]}  Be5 {[%clk 0:00:39]} 35. Bb3 {[%clk 0:00:55]}  Be8 {[%clk 0:00:37]} 36. Ng4 {[%clk 0:00:49]}  Bc3 {[%clk 0:00:36]} 37. Ne3 {[%clk 0:00:48]}  Bd7 {[%clk 0:00:31]} 38. Nf5 {[%clk 0:00:46]}  Be5 {[%clk 0:00:29]} 39. g4 {[%clk 0:00:41]}  Bc6+ {[%clk 0:00:27]} 40. Kg1 {[%clk 0:00:41]}  Ke8 {[%clk 0:00:27]} 41. Re1 {[%clk 0:00:38]}  Kf8 {[%clk 0:00:25]} 42. h4 {[%clk 0:00:31]}  Bxf6 {[%clk 0:00:24]} 43. Nxd6 {[%clk 0:00:28]}  gxh4 {[%clk 0:00:23]} 44. Nxf7 {[%clk 0:00:24]}  Bd4+ {[%clk 0:00:21]} 45. Kh2 {[%clk 0:00:23]}  Bf2 {[%clk 0:00:21]} 46. Rf1 {[%clk 0:00:20]}  Bg3+ {[%clk 0:00:20]} 47. Kh3 {[%clk 0:00:20]}  Bb5 {[%clk 0:00:21]} 48. Rf5 {[%clk 0:00:17]}  Bd3 {[%clk 0:00:20]} 49. Rf3 {[%clk 0:00:16]}  Be2 {[%clk 0:00:20]} 50. Ne5+ {[%clk 0:00:13]}  Bxf3 {[%clk 0:00:20]} 51. Nxf3 {[%clk 0:00:14]}  Ke7 {[%clk 0:00:20]} 52. Nxh4 {[%clk 0:00:15]}  Be1 {[%clk 0:00:19]} 53. Nf5+ {[%clk 0:00:15]}  Kf6 {[%clk 0:00:20]} 54. Kg2 {[%clk 0:00:15]}  h5 {[%clk 0:00:20]} 55. Kf3 {[%clk 0:00:14]}  hxg4+ {[%clk 0:00:20]} 56. Kxg4 {[%clk 0:00:15]}  Ke5 {[%clk 0:00:21]} 57. Ne3 {[%clk 0:00:14]}  Kd4 {[%clk 0:00:20]} 58. Nc4 {[%clk 0:00:15]}  Kc3 {[%clk 0:00:20]} 59. Kf3 {[%clk 0:00:16]}  Bh4 {[%clk 0:00:21]} 60. Ke4 {[%clk 0:00:16]}  Be7 {[%clk 0:00:21]} 61. Kd5 {[%clk 0:00:16]}  Bf8 {[%clk 0:00:22]} 62. Kc6 {[%clk 0:00:17]}  Be7 {[%clk 0:00:21]} 63. Kb5 {[%clk 0:00:18]}  Bf8 {[%clk 0:00:22]} 64. Na5 {[%clk 0:00:18]}  Be7 {[%clk 0:00:22]} 65. Nc6 {[%clk 0:00:19]}  Bf8 {[%clk 0:00:22]} 66. Na7 {[%clk 0:00:15]}  Be7 {[%clk 0:00:22]} 67. Nc8 {[%clk 0:00:15]}  Bf8 {[%clk 0:00:22]} 68. Nb6 {[%clk 0:00:15]}  Kb2 {[%clk 0:00:18]} 69. Nd5 {[%clk 0:00:15]}  Ka3 {[%clk 0:00:18]} 70. Bc4 {[%clk 0:00:14]}  Bd6 {[%clk 0:00:17]} 71. Bb3 {[%clk 0:00:14]}  Bf8 {[%clk 0:00:17]} 72. Ne3 {[%clk 0:00:15]}  Kb2 {[%clk 0:00:16]} 73. Kc4 {[%clk 0:00:14]}  Ka3 {[%clk 0:00:14]} 74. Nc2+ {[%clk 0:00:14]}  Kb2 {[%clk 0:00:14]} 75. Nxb4 {[%clk 0:00:14]}  Kc1 {[%clk 0:00:15]} 76. a4 {[%clk 0:00:14]}  Bh6 {[%clk 0:00:14]} 77. a5 {[%clk 0:00:13]}  Be3 {[%clk 0:00:12]} 78. a6 {[%clk 0:00:13]}  Ba7 {[%clk 0:00:11]} 79. Kb5 {[%clk 0:00:13]}  Kb2 {[%clk 0:00:11]} 80. Bd5 {[%clk 0:00:13]}  Kc3 {[%clk 0:00:11]} 81. Nc6 {[%clk 0:00:12]}  Be3 {[%clk 0:00:11]} 82. Be6 {[%clk 0:00:11]}  Bf2 {[%clk 0:00:11]} 83. Bc8 {[%clk 0:00:11]}  Be3 {[%clk 0:00:11]} 84. Ne7 {[%clk 0:00:11]}  Ba7 {[%clk 0:00:09]} 85. Nf5 {[%clk 0:00:11]}  Kd3 {[%clk 0:00:09]} 86. Nd6 {[%clk 0:00:11]}  Kd4 {[%clk 0:00:09]} 87. Kc6 {[%clk 0:00:11]}  Ke5 {[%clk 0:00:08]} 88. Kb7 {[%clk 0:00:10]}  Bg1 {[%clk 0:00:05]} 89. Nc4+ {[%clk 0:00:10]}  Kd4 {[%clk 0:00:05]} 90. Nb6 {[%clk 0:00:10]}  Kc3 {[%clk 0:00:05]} 91. a7 {[%clk 0:00:10]}  Bxb6 {[%clk 0:00:04]} 92. Kxb6 {[%clk 0:00:11]} 1-0


[Site "https://www.chess.com"]

[Event "Titled Tuesday Blitz August 08 Early 2023"]
[White "Garrido, Denis"]
[Black "Parpiev, Isaak"]
[WhiteFideId "601217"]
[BlackFideId "34281576"]
[WhiteElo "2262"]
[BlackElo "2542"]
[Result "0-1"]
[Round "3"]
[TimeControl "180+1"]
[Date "2023.08.08"]
[WhiteClock "0:00:16"]
[BlackClock "0:00:07"]
[Board "224"]

1. d4 {[%clk 0:03:00]}  Nf6 {[%clk 0:02:58]} 2. c4 {[%clk 0:03:00]}  g6 {[%clk 0:02:58]} 3. Nc3 {[%clk 0:02:59]}  Bg7 {[%clk 0:02:57]} 4. e4 {[%clk 0:02:59]}  d6 {[%clk 0:02:57]} 5. Be2 {[%clk 0:02:59]}  e5 {[%clk 0:02:57]} 6. Nf3 {[%clk 0:02:54]}  O-O {[%clk 0:02:51]} 7. O-O {[%clk 0:02:54]}  Nc6 {[%clk 0:02:51]} 8. d5 {[%clk 0:02:53]}  Ne7 {[%clk 0:02:51]} 9. b4 {[%clk 0:02:54]}  a5 {[%clk 0:02:49]} 10. bxa5 {[%clk 0:02:53]}  Ne8 {[%clk 0:02:36]} 11. a4 {[%clk 0:02:51]}  h6 {[%clk 0:02:25]} 12. Ba3 {[%clk 0:02:48]}  f5 {[%clk 0:02:25]} 13. exf5 {[%clk 0:02:47]}  gxf5 {[%clk 0:02:24]} 14. c5 {[%clk 0:02:42]}  Rxa5 {[%clk 0:02:14]} 15. cxd6 {[%clk 0:02:41]}  Nxd6 {[%clk 0:02:12]} 16. Rc1 {[%clk 0:02:36]}  Ng6 {[%clk 0:02:02]} 17. Qb3 {[%clk 0:02:26]}  Rf7 {[%clk 0:01:50]} 18. Nb5 {[%clk 0:02:15]}  Nf4 {[%clk 0:01:41]} 19. Rfe1 {[%clk 0:02:11]}  Nxe2+ {[%clk 0:01:31]} 20. Rxe2 {[%clk 0:02:12]}  Nxb5 {[%clk 0:01:27]} 21. axb5 {[%clk 0:02:09]}  e4 {[%clk 0:01:25]} 22. Nd2 {[%clk 0:01:59]}  Bd7 {[%clk 0:01:24]} 23. b6 {[%clk 0:01:47]}  cxb6 {[%clk 0:01:14]} 24. d6 {[%clk 0:01:24]}  Rb5 {[%clk 0:00:38]} 25. Qa2 {[%clk 0:01:21]}  Qf6 {[%clk 0:00:28]} 26. Rc7 {[%clk 0:01:18]}  Kh7 {[%clk 0:00:25]} 27. Nf1 {[%clk 0:01:14]}  Be6 {[%clk 0:00:25]} 28. Qd2 {[%clk 0:01:05]}  Rb1 {[%clk 0:00:14]} 29. Rxf7 {[%clk 0:00:58]}  Qxf7 {[%clk 0:00:12]} 30. h3 {[%clk 0:00:54]}  Qd7 {[%clk 0:00:07]} 31. Re1 {[%clk 0:00:50]}  Rb3 {[%clk 0:00:07]} 32. Qc1 {[%clk 0:00:39]}  b5 {[%clk 0:00:05]} 33. Bc5 {[%clk 0:00:35]}  Rc3 {[%clk 0:00:05]} 34. Qf4 {[%clk 0:00:30]}  Rxc5 {[%clk 0:00:05]} 35. Ne3 {[%clk 0:00:31]}  Re5 {[%clk 0:00:04]} 36. g4 {[%clk 0:00:30]}  fxg4 {[%clk 0:00:04]} 37. hxg4 {[%clk 0:00:31]}  Qxd6 {[%clk 0:00:04]} 38. Kg2 {[%clk 0:00:30]}  Qf8 {[%clk 0:00:04]} 39. Qg3 {[%clk 0:00:29]}  Qf3+ {[%clk 0:00:04]} 40. Qxf3 {[%clk 0:00:29]}  exf3+ {[%clk 0:00:05]} 41. Kxf3 {[%clk 0:00:30]}  b4 {[%clk 0:00:05]} 42. Rb1 {[%clk 0:00:29]}  Rxe3+ {[%clk 0:00:05]} 43. fxe3 {[%clk 0:00:28]}  b3 {[%clk 0:00:06]} 44. Kf4 {[%clk 0:00:27]}  b5 {[%clk 0:00:07]} 45. e4 {[%clk 0:00:27]}  Bc3 {[%clk 0:00:06]} 46. e5 {[%clk 0:00:26]}  b2 {[%clk 0:00:07]} 47. g5 {[%clk 0:00:23]}  hxg5+ {[%clk 0:00:07]} 48. Kxg5 {[%clk 0:00:24]}  Ba2 {[%clk 0:00:07]} 49. Rh1+ {[%clk 0:00:24]}  Kg7 {[%clk 0:00:07]} 50. e6 {[%clk 0:00:20]}  Bxe6 {[%clk 0:00:07]} 51. Kf4 {[%clk 0:00:17]}  Ba2 {[%clk 0:00:07]} 52. Rg1+ {[%clk 0:00:16]}  Kf6 {[%clk 0:00:07]} 0-1


[Site "https://www.chess.com"]